[Event "Open Nuevo Centro. Jornada 1"]
[Site "Chess.com"]
[Date "2020.06.19"]
[Round "1"]
[White "Luque Saiz, Andres"]
[Black "Hern�ndez Tom�s, Efr�n"]
[Result "1-0"]
[WhiteElo "1696"]
[BlackElo "900"]
[TimeControl "180+2"]
[EndTime "10:35:55 PDT"]
[Termination "Victoria de Chuch1n por jaque mate"]

1. e4 {[%clk 0:02:59.5]} 1... e5 {[%clk 0:03:00.3]} 2. d4 {[%clk 0:03:00.5]}
2... exd4 {[%clk 0:02:57.7]} 3. Nf3 {[%clk 0:03:01.7]} 3... Nf6 {[%clk
0:02:54.6]} 4. e5 {[%clk 0:03:00.4]} 4... Ng4 {[%clk 0:02:52.7]} 5. h3 {[%clk
0:03:01.1]} 5... Nh6 {[%clk 0:02:51.3]} 6. Bxh6 {[%clk 0:02:59.4]} 6... gxh6
{[%clk 0:02:51.2]} 7. Bc4 {[%clk 0:02:57.4]} 7... Nc6 {[%clk 0:02:51]} 8. O-O
{[%clk 0:02:55.9]} 8... Bc5 {[%clk 0:02:48]} 9. Nbd2 {[%clk 0:02:56.5]} 9... d6
{[%clk 0:02:45.2]} 10. Ne4 {[%clk 0:02:49.4]} 10... dxe5 {[%clk 0:02:44.2]} 11.
Nxc5 {[%clk 0:02:49.6]} 11... b6 {[%clk 0:02:39.9]} 12. Bb5 {[%clk 0:02:31.6]}
12... Bb7 {[%clk 0:02:32.4]} 13. Bxc6+ {[%clk 0:02:29]} 13... Bxc6 {[%clk
0:02:32.1]} 14. Nxe5 {[%clk 0:02:21.9]} 14... bxc5 {[%clk 0:02:27.3]} 15. Nxc6
{[%clk 0:02:22]} 15... Qd5 {[%clk 0:02:24.1]} 16. Qe2+ {[%clk 0:02:17.7]} 16...
Qe6 {[%clk 0:02:20.7]} 17. Qb5 {[%clk 0:02:14.1]} 17... O-O {[%clk 0:02:11.2]}
18. Qxc5 {[%clk 0:02:12.4]} 18... Rae8 {[%clk 0:02:01.4]} 19. Nxd4 {[%clk
0:02:10.9]} 19... Qd6 {[%clk 0:01:55.1]} 20. Qxd6 {[%clk 0:02:10.5]} 20... cxd6
{[%clk 0:01:55.1]} 21. c4 {[%clk 0:02:09.1]} 21... Rd8 {[%clk 0:01:52]} 22. Nc6
{[%clk 0:02:07]} 22... Rd7 {[%clk 0:01:45.8]} 23. b3 {[%clk 0:02:07.1]} 23...
Rc7 {[%clk 0:01:43.6]} 24. Nb4 {[%clk 0:02:06]} 24... Rb7 {[%clk 0:01:42.9]} 25.
Nd5 {[%clk 0:02:07.9]} 25... Re8 {[%clk 0:01:37.4]} 26. Rfe1 {[%clk 0:02:08]}
26... Rxe1+ {[%clk 0:01:37.2]} 27. Rxe1 {[%clk 0:02:09.9]} 27... Kg7 {[%clk
0:01:30.9]} 28. Re7 {[%clk 0:02:10.1]} 28... Rxe7 {[%clk 0:01:30.5]} 29. Nxe7
{[%clk 0:02:12]} 29... a5 {[%clk 0:01:30]} 30. Nf5+ {[%clk 0:02:12.1]} 30... Kg6
{[%clk 0:01:29.2]} 31. Nxd6 {[%clk 0:02:14]} 31... Kf6 {[%clk 0:01:28.7]} 32. a4
{[%clk 0:02:12.8]} 32... Ke6 {[%clk 0:01:29.5]} 33. Nb7 {[%clk 0:02:14.7]} 33...
Kd7 {[%clk 0:01:28.7]} 34. Nxa5 {[%clk 0:02:16.6]} 34... Kc7 {[%clk 0:01:28.3]}
35. b4 {[%clk 0:02:18.5]} 35... Kb6 {[%clk 0:01:28.9]} 36. f4 {[%clk 0:02:20.4]}
36... f5 {[%clk 0:01:27.7]} 37. Kf2 {[%clk 0:02:22.3]} 37... h5 {[%clk
0:01:28.4]} 38. Ke3 {[%clk 0:02:24.2]} 38... Kc7 {[%clk 0:01:25.8]} 39. Kd4
{[%clk 0:02:26.1]} 39... Kd6 {[%clk 0:01:26.7]} 40. c5+ {[%clk 0:02:26.3]} 40...
Kc7 {[%clk 0:01:26.3]} 41. b5 {[%clk 0:02:28.2]} 41... h6 {[%clk 0:01:26.3]} 42.
Kd5 {[%clk 0:02:30.1]} 42... h4 {[%clk 0:01:26.6]} 43. Ke5 {[%clk 0:02:32]}
43... Kb8 {[%clk 0:01:26.9]} 44. Ke6 {[%clk 0:02:33.9]} 44... Kc7 {[%clk
0:01:27.8]} 45. b6+ {[%clk 0:02:34.4]} 45... Kb8 {[%clk 0:01:26.5]} 46. c6
{[%clk 0:02:36.3]} 46... Kc8 {[%clk 0:01:27.4]} 47. Kd6 {[%clk 0:02:32.8]} 47...
Kb8 {[%clk 0:01:28.1]} 48. c7+ {[%clk 0:02:31.5]} 48... Kc8 {[%clk 0:01:27.4]}
49. b7# {[%clk 0:02:32.7]} 1

[Event "Open Nuevo Centro. Jornada 1"]
[Site "Chess.com"]
[Date "2020.06.19"]
[Round "1"]
[White "Teply Koutsky, David"]
[Black "Galiana Ferrer, Oscar"]
[Result "1-0"]
[WhiteElo "1582"]
[BlackElo "738"]
[TimeControl "180+2"]
[EndTime "10:35:56 PDT"]
[Termination "Victoria de Mrchessmashine por jaque mate"]

1. d4 {[%clk 0:03:01.9]} 1... d5 {[%clk 0:02:55.9]} 2. c4 {[%clk 0:03:02.4]}
2... e6 {[%clk 0:02:52.9]} 3. Nc3 {[%clk 0:03:02.1]} 3... Nf6 {[%clk 0:02:50]}
4. Bg5 {[%clk 0:03:01.4]} 4... Nc6 {[%clk 0:02:45.8]} 5. e3 {[%clk 0:02:52.9]}
5... Bd6 {[%clk 0:02:42.6]} 6. cxd5 {[%clk 0:02:52]} 6... exd5 {[%clk
0:02:38.7]} 7. Nxd5 {[%clk 0:02:52.4]} 7... O-O {[%clk 0:02:38]} 8. Nxf6+ {[%clk
0:02:51.3]} 8... gxf6 {[%clk 0:02:37.4]} 9. Bh6 {[%clk 0:02:52]} 9... Re8 {[%clk
0:02:37.1]} 10. Be2 {[%clk 0:02:46.9]} 10... Bb4+ {[%clk 0:02:33.4]} 11. Kf1
{[%clk 0:02:44.6]} 11... Bd6 {[%clk 0:02:32.4]} 12. Bg4 {[%clk 0:02:43.8]} 12...
f5 {[%clk 0:02:25.7]} 13. Be2 {[%clk 0:02:34.9]} 13... Qh4 {[%clk 0:02:16.1]}
14. Bf4 {[%clk 0:02:26]} 14... Qd8 {[%clk 0:02:14.6]} 15. Bg3 {[%clk 0:02:22.3]}
15... Be6 {[%clk 0:02:05.6]} 16. Nf3 {[%clk 0:02:21.7]} 16... Rf8 {[%clk
0:01:54.5]} 17. Bxd6 {[%clk 0:02:17.1]} 17... cxd6 {[%clk 0:01:54.3]} 18. g3
{[%clk 0:02:18.1]} 18... d5 {[%clk 0:01:47.9]} 19. Kg2 {[%clk 0:02:17.5]} 19...
a6 {[%clk 0:01:37.3]} 20. Ne5 {[%clk 0:02:16.9]} 20... Nxe5 {[%clk 0:01:37.1]}
21. dxe5 {[%clk 0:02:17.5]} 21... b5 {[%clk 0:01:28.2]} 22. f4 {[%clk
0:02:17.1]} 22... Bd7 {[%clk 0:01:14]} 23. Bf3 {[%clk 0:02:11.6]} 23... Bc6
{[%clk 0:01:13.3]} 24. Rc1 {[%clk 0:02:11.1]} 24... Bb7 {[%clk 0:01:09.5]} 25.
h3 {[%clk 0:02:04.3]} 25... f6 {[%clk 0:01:03.7]} 26. exf6 {[%clk 0:02:00.8]}
26... Rxf6 {[%clk 0:01:03.2]} 27. g4 {[%clk 0:01:57.8]} 27... fxg4 {[%clk
0:01:02.2]} 28. hxg4 {[%clk 0:01:58.1]} 28... Rf8 {[%clk 0:00:55.7]} 29. Qc2
{[%clk 0:01:53.3]} 29... Rc8 {[%clk 0:00:45.8]} 30. Qxh7# {[%clk 0:01:52.5]} 1

[Event "Open Nuevo Centro. Jornada 1"]
[Site "Chess.com"]
[Date "2020.06.19"]
[Round "1"]
[White "Haoyou, Deng"]
[Black "Lupu, Alexandru Mihai"]
[Result "1-0"]
[WhiteElo "1807"]
[BlackElo "1020"]
[TimeControl "180+2"]
[EndTime "10:36:02 PDT"]
[Termination "Victoria de Hoyau por tiempo"]

1. d4 {[%clk 0:02:59.6]} 1... d5 {[%clk 0:02:59.6]} 2. c4 {[%clk 0:03:00.8]}
2... c6 {[%clk 0:02:56.1]} 3. Nf3 {[%clk 0:03:01.8]} 3... Bf5 {[%clk 0:02:55.1]}
4. cxd5 {[%clk 0:03:02.9]} 4... cxd5 {[%clk 0:02:54.8]} 5. Nc3 {[%clk
0:03:04.6]} 5... Nf6 {[%clk 0:02:52.4]} 6. Qb3 {[%clk 0:03:05.4]} 6... e6 {[%clk
0:02:46.2]} 7. Qxb7 {[%clk 0:03:05.7]} 7... Nbd7 {[%clk 0:02:37.3]} 8. e3 {[%clk
0:03:02.9]} 8... Qb8 {[%clk 0:02:34.9]} 9. Qxb8+ {[%clk 0:03:03]} 9... Rxb8
{[%clk 0:02:35.2]} 10. Be2 {[%clk 0:03:04.7]} 10... Bd6 {[%clk 0:02:34.2]} 11.
O-O {[%clk 0:03:04.7]} 11... O-O {[%clk 0:02:33.5]} 12. b3 {[%clk 0:03:01.2]}
12... Rfe8 {[%clk 0:02:29.2]} 13. Bb2 {[%clk 0:03:02]} 13... h6 {[%clk
0:02:20.2]} 14. h3 {[%clk 0:03:00.4]} 14... e5 {[%clk 0:02:19.1]} 15. dxe5
{[%clk 0:03:01.5]} 15... Bxe5 {[%clk 0:02:13.7]} 16. Nxe5 {[%clk 0:02:58.6]}
16... Nxe5 {[%clk 0:02:05.5]} 17. Rfd1 {[%clk 0:02:59.7]} 17... Rbd8 {[%clk
0:02:01.2]} 18. Rac1 {[%clk 0:02:47.6]} 18... Nc6 {[%clk 0:01:48.6]} 19. Nb5
{[%clk 0:02:45.9]} 19... Nb4 {[%clk 0:01:21.1]} 20. a3 {[%clk 0:02:40.1]} 20...
Na6 {[%clk 0:00:57.4]} 21. Nxa7 {[%clk 0:02:38.9]} 21... Rd7 {[%clk 0:00:48.5]}
22. Nc6 {[%clk 0:02:37.3]} 22... Rc8 {[%clk 0:00:46.4]} 23. Bxf6 {[%clk
0:02:36.6]} 23... gxf6 {[%clk 0:00:45]} 24. Bxa6 {[%clk 0:02:37.4]} 24... Rcc7
{[%clk 0:00:43.2]} 25. b4 {[%clk 0:02:31.3]} 25... Rd6 {[%clk 0:00:37.7]} 26. b5
{[%clk 0:02:31.9]} 26... Bd7 {[%clk 0:00:32.1]} 27. Ne7+ {[%clk 0:02:28.2]}
27... Kh7 {[%clk 0:00:26.4]} 28. Rxc7 {[%clk 0:02:30.1]} 28... Bxb5 {[%clk
0:00:21.9]} 29. Bxb5 {[%clk 0:02:30.6]} 1

[Event "Open Nuevo Centro. Jornada 1"]
[Site "Chess.com"]
[Date "2020.06.19"]
[Round "1"]
[White "Deusa Ballesteros, Luis Miguel"]
[Black "Selva Viu, Antonio"]
[Result "1-0"]
[WhiteElo "1520"]
[BlackElo "399"]
[TimeControl "180+2"]
[EndTime "10:36:09 PDT"]
[Termination "Victoria de luma2 por tiempo"]

1. Nf3 {[%clk 0:02:57.4]} 1... d5 {[%clk 0:02:56.7]} 2. g3 {[%clk 0:02:57]} 2...
e6 {[%clk 0:02:46.6]} 3. Bg2 {[%clk 0:02:57.2]} 3... Bc5 {[%clk 0:02:40.7]} 4.
d4 {[%clk 0:02:56.5]} 4... Bd6 {[%clk 0:02:35.6]} 5. Bg5 {[%clk 0:02:53.2]} 5...
Be7 {[%clk 0:02:28.7]} 6. Bxe7 {[%clk 0:02:53]} 6... Qxe7 {[%clk 0:02:28]} 7. c4
{[%clk 0:02:54]} 7... Nf6 {[%clk 0:02:19]} 8. Nc3 {[%clk 0:02:53.3]} 8... O-O
{[%clk 0:02:12.7]} 9. cxd5 {[%clk 0:02:52.7]} 9... exd5 {[%clk 0:02:07.1]} 10.
O-O {[%clk 0:02:51.7]} 10... Re8 {[%clk 0:02:04]} 11. e3 {[%clk 0:02:51.7]}
11... Ne4 {[%clk 0:01:57.1]} 12. Nxe4 {[%clk 0:02:49.6]} 12... dxe4 {[%clk
0:01:54.4]} 13. Ne5 {[%clk 0:02:47]} 13... c5 {[%clk 0:01:48.3]} 14. Qc2 {[%clk
0:02:34.8]} 14... cxd4 {[%clk 0:01:36.8]} 15. exd4 {[%clk 0:02:34.4]} 15... Nc6
{[%clk 0:01:18.1]} 16. Nxc6 {[%clk 0:02:34.1]} 16... bxc6 {[%clk 0:01:14.1]} 17.
Rfe1 {[%clk 0:02:34.4]} 17... Bf5 {[%clk 0:01:06.4]} 18. Qxc6 {[%clk 0:02:30.1]}
18... Qd7 {[%clk 0:00:48.4]} 19. Qxd7 {[%clk 0:02:28.5]} 19... Bxd7 {[%clk
0:00:47.4]} 20. Rxe4 {[%clk 0:02:28.2]} 20... Rxe4 {[%clk 0:00:42.3]} 21. Bxe4
{[%clk 0:02:28.3]} 21... Rb8 {[%clk 0:00:36.9]} 22. b3 {[%clk 0:02:28]} 22...
Re8 {[%clk 0:00:34.5]} 23. Bf3 {[%clk 0:02:24.9]} 23... f6 {[%clk 0:00:26.4]}
24. Kf1 {[%clk 0:02:24.8]} 24... Bh3+ {[%clk 0:00:23.1]} 25. Bg2 {[%clk
0:02:22.4]} 25... Bd7 {[%clk 0:00:17.9]} 26. Re1 {[%clk 0:02:20.2]} 26... Rxe1+
{[%clk 0:00:11.8]} 27. Kxe1 {[%clk 0:02:22.1]} 27... Bg4 {[%clk 0:00:03.5]} 28.
Kd2 {[%clk 0:02:20.9]} 1

[Event "Open Nuevo Centro. Jornada 1"]
[Site "Chess.com"]
[Date "2020.06.19"]
[Round "1"]
[White "Clement G�mez, Jos� Antonio"]
[Black "Donate Moreno, David"]
[Result "1-0"]
[WhiteElo "2489"]
[BlackElo "1487"]
[TimeControl "180+2"]
[EndTime "10:36:11 PDT"]
[Termination "Victoria de P4AD por jaque mate"]

1. d4 {[%clk 0:03:00.5]} 1... Nf6 {[%clk 0:03:00.3]} 2. c4 {[%clk 0:03:01.8]}
2... c5 {[%clk 0:02:58.9]} 3. d5 {[%clk 0:02:57.6]} 3... b5 {[%clk 0:02:56.5]}
4. cxb5 {[%clk 0:02:59.5]} 4... d6 {[%clk 0:02:56.7]} 5. Nc3 {[%clk 0:02:59.2]}
5... a6 {[%clk 0:02:57.5]} 6. b6 {[%clk 0:02:59.7]} 6... Qxb6 {[%clk 0:02:54.1]}
7. Nf3 {[%clk 0:03:01.1]} 7... g6 {[%clk 0:02:54.7]} 8. Nd2 {[%clk 0:03:02.3]}
8... Bg7 {[%clk 0:02:55]} 9. e4 {[%clk 0:03:03.6]} 9... O-O {[%clk 0:02:55.2]}
10. Be2 {[%clk 0:03:04.9]} 10... a5 {[%clk 0:02:54.4]} 11. O-O {[%clk 0:03:03]}
11... Ba6 {[%clk 0:02:54.6]} 12. Nc4 {[%clk 0:02:51.7]} 12... Bxc4 {[%clk
0:02:45.6]} 13. Bxc4 {[%clk 0:02:53.6]} 13... Na6 {[%clk 0:02:43.7]} 14. h3
{[%clk 0:02:53.6]} 14... a4 {[%clk 0:02:41.1]} 15. a3 {[%clk 0:02:43.4]} 15...
Qa5 {[%clk 0:02:32.8]} 16. Qe2 {[%clk 0:02:41.2]} 16... Rfb8 {[%clk 0:02:29.7]}
17. Rb1 {[%clk 0:02:18.3]} 17... Nd7 {[%clk 0:02:21.2]} 18. Bf4 {[%clk
0:02:13.7]} 18... Ne5 {[%clk 0:02:19.6]} 19. Bg3 {[%clk 0:01:59.3]} 19... Nxc4
{[%clk 0:02:19.1]} 20. Qxc4 {[%clk 0:02:01.2]} 20... Rb3 {[%clk 0:02:19]} 21.
Qxa4 {[%clk 0:01:40.3]} 21... Qxa4 {[%clk 0:02:18.5]} 22. Nxa4 {[%clk
0:01:42.2]} 22... Rab8 {[%clk 0:02:18.1]} 23. Rfe1 {[%clk 0:01:38.9]} 23... Bxb2
{[%clk 0:02:17.1]} 24. Nxb2 {[%clk 0:01:40.8]} 24... Rxb2 {[%clk 0:02:17.8]} 25.
Rxb2 {[%clk 0:01:42.5]} 25... Rxb2 {[%clk 0:02:19.6]} 26. e5 {[%clk 0:01:43.2]}
26... dxe5 {[%clk 0:02:14.1]} 27. Rxe5 {[%clk 0:01:45.1]} 27... Rb3 {[%clk
0:02:12.7]} 28. Bf4 {[%clk 0:01:33.3]} 28... Kg7 {[%clk 0:01:43.3]} 29. Rxe7
{[%clk 0:01:33.1]} 29... c4 {[%clk 0:01:43]} 30. Be5+ {[%clk 0:01:32.4]} 30...
Kf8 {[%clk 0:01:41.8]} 31. Ra7 {[%clk 0:01:28.3]} 31... Nc5 {[%clk 0:01:36.4]}
32. Bd6+ {[%clk 0:01:28.1]} 32... Kg7 {[%clk 0:01:35.6]} 33. Bxc5 {[%clk
0:01:30]} 33... c3 {[%clk 0:01:36.3]} 34. Bd4+ {[%clk 0:01:27.5]} 34... Kg8
{[%clk 0:01:35.5]} 35. Rc7 {[%clk 0:01:29.4]} 35... Rb1+ {[%clk 0:01:29]} 36.
Kh2 {[%clk 0:01:29]} 36... h5 {[%clk 0:01:27.2]} 37. Rc8+ {[%clk 0:01:29.4]}
37... Kh7 {[%clk 0:01:28]} 38. Rh8# {[%clk 0:01:31.3]} 1

[Event "Open Nuevo Centro. Jornada 1"]
[Site "Chess.com"]
[Date "2020.06.19"]
[Round "1"]
[White "Yatseta Fernandez, Marc Kazymyr"]
[Black "Garcia Trobat, Francisco"]
[Result "0-1"]
[WhiteElo "1388"]
[BlackElo "2221"]
[TimeControl "180+2"]
[EndTime "10:36:15 PDT"]
[Termination "Victoria de NoSure por abandono"]

1. d4 {[%clk 0:03:00.2]} 1... Nf6 {[%clk 0:02:59.9]} 2. c4 {[%clk 0:03:00.9]}
2... e6 {[%clk 0:03:00.5]} 3. g3 {[%clk 0:03:02.1]} 3... Bd6 {[%clk 0:03:02.4]}
4. Bg2 {[%clk 0:03:01.8]} 4... Bb4+ {[%clk 0:03:04.3]} 5. Bd2 {[%clk 0:03:01.7]}
5... c5 {[%clk 0:03:04.7]} 6. Nf3 {[%clk 0:03:00.5]} 6... Qb6 {[%clk 0:03:02.8]}
7. O-O {[%clk 0:02:44.6]} 7... Nc6 {[%clk 0:02:51.9]} 8. dxc5 {[%clk 0:02:40.2]}
8... Bxc5 {[%clk 0:02:46.9]} 9. Nc3 {[%clk 0:02:32.3]} 9... Be7 {[%clk
0:02:37.7]} 10. Re1 {[%clk 0:02:21.5]} 10... O-O {[%clk 0:02:31.8]} 11. Qc2
{[%clk 0:02:20.2]} 11... d6 {[%clk 0:02:26.3]} 12. Rac1 {[%clk 0:02:17.9]} 12...
Bd7 {[%clk 0:02:26.3]} 13. b3 {[%clk 0:02:14.9]} 13... Rac8 {[%clk 0:02:26.9]}
14. Be3 {[%clk 0:02:11.5]} 14... Qa5 {[%clk 0:02:26.3]} 15. Red1 {[%clk
0:01:59.2]} 15... d5 {[%clk 0:02:20.6]} 16. cxd5 {[%clk 0:01:39.5]} 16... Nb4
{[%clk 0:02:08.3]} 17. Qb2 {[%clk 0:01:33.2]} 17... Nbxd5 {[%clk 0:02:04.2]} 18.
Nxd5 {[%clk 0:01:31.1]} 18... Nxd5 {[%clk 0:02:04.2]} 19. Ne5 {[%clk 0:01:20.2]}
19... Ba3 {[%clk 0:01:57.8]} 20. Qb1 {[%clk 0:01:09.9]} 20... Rxc1 {[%clk
0:01:52.2]} 21. Rxc1 {[%clk 0:01:01.6]} 21... Bxc1 {[%clk 0:01:46.7]} 22. Qxc1
{[%clk 0:00:59.5]} 22... Rc8 {[%clk 0:01:43.4]} 23. Qb2 {[%clk 0:00:49.9]} 23...
Nxe3 {[%clk 0:01:40.1]} 24. fxe3 {[%clk 0:00:34.2]} 24... Qe1+ {[%clk
0:01:40.3]} 25. Bf1 {[%clk 0:00:32.7]} 25... Rc1 {[%clk 0:01:40.3]} 0

[Event "Open Nuevo Centro. Jornada 1"]
[Site "Chess.com"]
[Date "2020.06.19"]
[Round "1"]
[White "Macias Pino, Diego"]
[Black "Gutierrez Lacambra, Jose Antonio"]
[Result "1-0"]
[WhiteElo "2205"]
[BlackElo "1294"]
[TimeControl "180+2"]
[EndTime "10:36:29 PDT"]
[Termination "Victoria de jesuimafe por tiempo"]

1. e4 {[%clk 0:02:58.4]} 1... c5 {[%clk 0:03:00.3]} 2. Nf3 {[%clk 0:02:58.7]}
2... d6 {[%clk 0:03:01.5]} 3. d3 {[%clk 0:02:59.7]} 3... Nc6 {[%clk 0:03:00.2]}
4. Nbd2 {[%clk 0:03:01.2]} 4... e6 {[%clk 0:03:00.6]} 5. g3 {[%clk 0:03:02.1]}
5... Nf6 {[%clk 0:03:01.8]} 6. Bg2 {[%clk 0:03:03.5]} 6... Be7 {[%clk
0:03:03.1]} 7. O-O {[%clk 0:03:03.3]} 7... O-O {[%clk 0:03:04.2]} 8. c3 {[%clk
0:03:04.7]} 8... Qc7 {[%clk 0:03:02.5]} 9. Re1 {[%clk 0:03:03.7]} 9... a6 {[%clk
0:03:01.6]} 10. a3 {[%clk 0:03:03.5]} 10... b5 {[%clk 0:03:02.4]} 11. b4 {[%clk
0:03:02.1]} 11... Bb7 {[%clk 0:02:45]} 12. Bb2 {[%clk 0:02:31.3]} 12... Rfe8
{[%clk 0:02:38.7]} 13. Qe2 {[%clk 0:02:31.7]} 13... Rad8 {[%clk 0:02:19.1]} 14.
Rad1 {[%clk 0:02:28.4]} 14... Ng4 {[%clk 0:01:49.4]} 15. h3 {[%clk 0:02:26.8]}
15... Nge5 {[%clk 0:01:50]} 16. Nxe5 {[%clk 0:02:27.5]} 16... Nxe5 {[%clk
0:01:51.9]} 17. f4 {[%clk 0:02:28.2]} 17... Nc6 {[%clk 0:01:48.2]} 18. Nf3
{[%clk 0:02:28.5]} 18... cxb4 {[%clk 0:01:45]} 19. cxb4 {[%clk 0:02:30.4]} 19...
Qb6+ {[%clk 0:01:41.3]} 20. Kh2 {[%clk 0:02:29.6]} 20... Rc8 {[%clk 0:01:17.8]}
21. g4 {[%clk 0:02:19.5]} 21... a5 {[%clk 0:00:45.1]} 22. Qd2 {[%clk 0:02:12.5]}
22... axb4 {[%clk 0:00:27]} 23. axb4 {[%clk 0:02:14.4]} 23... Bf8 {[%clk
0:00:10.6]} 24. Ba1 {[%clk 0:02:14]} 24... Ne7 {[%clk 0:00:11.4]} 25. h4 {[%clk
0:02:02.9]} 25... Rc7 {[%clk 0:00:12.3]} 26. Re2 {[%clk 0:01:51.4]} 26... Rec8
{[%clk 0:00:13.1]} 27. Qb2 {[%clk 0:01:51.9]} 1

[Event "Open Nuevo Centro. Jornada 1"]
[Site "Chess.com"]
[Date "2020.06.19"]
[Round "1"]
[White "Aguado, Pablo Luis"]
[Black "Aymerich Rosell, Pablo"]
[Result "0-1"]
[WhiteElo "1194"]
[BlackElo "2033"]
[TimeControl "180+2"]
[EndTime "10:36:33 PDT"]
[Termination "Victoria de jasikevic por abandono"]

1. d4 {[%clk 0:03:01.9]} 1... Nf6 {[%clk 0:02:59.1]} 2. c4 {[%clk 0:03:00.4]}
2... g6 {[%clk 0:02:58.8]} 3. Nc3 {[%clk 0:02:58.8]} 3... Bg7 {[%clk 0:02:57.6]}
4. e4 {[%clk 0:02:59.6]} 4... d6 {[%clk 0:02:58.3]} 5. Nf3 {[%clk 0:02:57]} 5...
O-O {[%clk 0:02:57.8]} 6. Be2 {[%clk 0:02:55.9]} 6... Nbd7 {[%clk 0:02:58.3]} 7.
O-O {[%clk 0:02:53]} 7... e5 {[%clk 0:02:59]} 8. d5 {[%clk 0:02:52.4]} 8... Nc5
{[%clk 0:02:58.2]} 9. Nd2 {[%clk 0:02:48.4]} 9... a5 {[%clk 0:02:57.2]} 10. b3
{[%clk 0:02:48.5]} 10... Ne8 {[%clk 0:02:55.4]} 11. Bb2 {[%clk 0:02:41.9]} 11...
f5 {[%clk 0:02:51.3]} 12. f3 {[%clk 0:02:42.5]} 12... Nf6 {[%clk 0:02:37.9]} 13.
a3 {[%clk 0:02:41.6]} 13... Nh5 {[%clk 0:02:23.8]} 14. b4 {[%clk 0:02:18.5]}
14... Na6 {[%clk 0:02:14.1]} 15. Nb3 {[%clk 0:02:04.8]} 15... axb4 {[%clk
0:02:00.1]} 16. axb4 {[%clk 0:02:05]} 16... Bd7 {[%clk 0:01:56.1]} 17. Ba3
{[%clk 0:01:19.8]} 17... Bh6 {[%clk 0:01:34.9]} 18. c5 {[%clk 0:01:13.1]} 18...
Be3+ {[%clk 0:01:28.9]} 19. Kh1 {[%clk 0:01:11.6]} 19... Qg5 {[%clk 0:01:10.4]}
20. Bxa6 {[%clk 0:00:44.4]} 20... Ng3+ {[%clk 0:00:59.4]} 0

[Event "Open Nuevo Centro. Jornada 1"]
[Site "Chess.com"]
[Date "2020.06.19"]
[Round "1"]
[White "Mart�nez Carvajal, Juan Francisco"]
[Black "Fern�ndez Mart�n, Berta"]
[Result "1-0"]
[WhiteElo "1793"]
[BlackElo "993"]
[TimeControl "180+2"]
[EndTime "10:36:33 PDT"]
[Termination "Victoria de JuanFcoMtnezCarvajal por tiempo"]

1. Nf3 {[%clk 0:03:01.7]} 1... d5 {[%clk 0:02:57.5]} 2. c4 {[%clk 0:02:58.9]}
2... Nf6 {[%clk 0:02:49.9]} 3. cxd5 {[%clk 0:02:54.8]} 3... c6 {[%clk
0:02:35.9]} 4. dxc6 {[%clk 0:02:46.6]} 4... Nxc6 {[%clk 0:02:29.8]} 5. Nc3
{[%clk 0:02:47.5]} 5... e5 {[%clk 0:02:22.8]} 6. d3 {[%clk 0:02:42.9]} 6... Bc5
{[%clk 0:02:14.7]} 7. Bg5 {[%clk 0:02:37.5]} 7... O-O {[%clk 0:01:58.5]} 8. Ne4
{[%clk 0:02:34.4]} 8... Be7 {[%clk 0:01:45.9]} 9. Nxf6+ {[%clk 0:02:27.7]} 9...
Bxf6 {[%clk 0:01:39.1]} 10. Bxf6 {[%clk 0:02:28]} 10... Qxf6 {[%clk 0:01:38.6]}
11. g3 {[%clk 0:02:28.2]} 11... e4 {[%clk 0:01:07.4]} 12. dxe4 {[%clk
0:02:22.1]} 12... Rd8 {[%clk 0:01:01.5]} 13. Qb3 {[%clk 0:02:08.3]} 13... Be6
{[%clk 0:00:54.5]} 14. Qc3 {[%clk 0:02:00.3]} 14... Qe7 {[%clk 0:00:41.8]} 15.
Bg2 {[%clk 0:01:54.2]} 15... Rac8 {[%clk 0:00:30.3]} 16. O-O {[%clk 0:01:50.2]}
16... Nb4 {[%clk 0:00:25.2]} 17. Qa3 {[%clk 0:01:26.9]} 17... Qc5 {[%clk
0:00:07.1]} 18. Rad1 {[%clk 0:01:05.1]} 1

[Event "Open Nuevo Centro. Jornada 1"]
[Site "Chess.com"]
[Date "2020.06.19"]
[Round "1"]
[White "Grigorev, Artur "]
[Black "Roca Cruz, Rafael"]
[Result "0-1"]
[WhiteElo "868"]
[BlackElo "1666"]
[TimeControl "180+2"]
[EndTime "10:36:46 PDT"]
[Termination "Victoria de RafaRocaCruz por jaque mate"]

1. e4 {[%clk 0:03:01.9]} 1... c5 {[%clk 0:02:58.5]} 2. Bc4 {[%clk 0:03:00]} 2...
e6 {[%clk 0:02:59.3]} 3. Nf3 {[%clk 0:02:56.5]} 3... d5 {[%clk 0:03:00.1]} 4.
exd5 {[%clk 0:02:55.5]} 4... exd5 {[%clk 0:03:01.2]} 5. Bb5+ {[%clk 0:02:44.7]}
5... Bd7 {[%clk 0:03:02.1]} 6. Bxd7+ {[%clk 0:02:45.1]} 6... Nxd7 {[%clk
0:03:00]} 7. d3 {[%clk 0:02:43.7]} 7... Ngf6 {[%clk 0:03:00.9]} 8. O-O {[%clk
0:02:41.6]} 8... Be7 {[%clk 0:03:02]} 9. Re1 {[%clk 0:02:41.4]} 9... O-O {[%clk
0:03:02.4]} 10. Bg5 {[%clk 0:02:41.2]} 10... Re8 {[%clk 0:02:56.4]} 11. Bxf6
{[%clk 0:02:39.1]} 11... Bxf6 {[%clk 0:02:55.4]} 12. Rxe8+ {[%clk 0:02:38.8]}
12... Qxe8 {[%clk 0:02:56.6]} 13. Nc3 {[%clk 0:02:38.3]} 13... Nb6 {[%clk
0:02:46.2]} 14. Qd2 {[%clk 0:02:16.3]} 14... Qd7 {[%clk 0:02:40.5]} 15. Re1
{[%clk 0:02:08.8]} 15... Re8 {[%clk 0:02:40.7]} 16. Rxe8+ {[%clk 0:01:49.5]}
16... Qxe8 {[%clk 0:02:40.3]} 17. h3 {[%clk 0:01:49.7]} 17... g6 {[%clk
0:02:35]} 18. Ng5 {[%clk 0:01:44.6]} 18... Qe7 {[%clk 0:02:32.1]} 19. h4 {[%clk
0:01:43.5]} 19... Bxg5 {[%clk 0:02:15.9]} 20. hxg5 {[%clk 0:01:41.2]} 20... Qe5
{[%clk 0:02:16]} 21. f4 {[%clk 0:01:34.9]} 21... Qe6 {[%clk 0:02:10.7]} 22. d4
{[%clk 0:01:31.6]} 22... Nc4 {[%clk 0:02:05.8]} 23. Qd3 {[%clk 0:01:26.3]} 23...
Qe1+ {[%clk 0:01:25.2]} 24. Kh2 {[%clk 0:01:20.9]} 24... cxd4 {[%clk 0:01:16.9]}
25. Nxd5 {[%clk 0:01:18.5]} 25... Ne3 {[%clk 0:01:04.5]} 26. Qxd4 {[%clk
0:01:10.1]} 26... Nf1+ {[%clk 0:00:56]} 27. Kh3 {[%clk 0:01:02.4]} 27... Qg3#
{[%clk 0:00:54.6]} 0